[Event "European Online Club-ch-D 2021"]
[Site "Online"]
[Date "2021.03.27"]
[Round "4.6"]
[White "Roubalik, Jakub"]
[Black "Kvetny, Mark"]
[Result "0-1"]
[ECO "A60"]
[WhiteElo "2391"]
[BlackElo "2416"]
[Annotator "NA"]
[PlyCount "84"]
[EventDate "2021.03.27"]
[EventType "team-tourn"]
[EventCountry "NET"]
[SourceTitle "playchess.com"]
[Source "ChessBase"]
[SourceQuality "1"]
[TimeControl "900+5"]

1. d4 {[%emt 0:00:00]} Nf6 {[%emt 0:00:17]} 2. c4 {[%emt 0:00:04]} e6 {[%emt 0:00:03]} 3. Nf3 {[%emt 0:00:02]} c5 {[%emt 0:00:05]} 4. d5 {[%emt 0:00:07]} exd5 {[%emt 0:00:04]} 5. cxd5 {[%emt 0:00:02]} Bd6 {[%emt 0:00:02]} 6. g3 {[%emt 0:00:21]} O-O {[%emt 0:00:26]} 7. Bg2 {[%emt 0:00:05]} Bc7 {[%emt 0:00:05]} 8. O-O {[%emt 0:00:09]} d6 {[%emt 0:00:13]} 9. Nc3 {[%emt 0:00:09]} a6 {[%emt 0:00:14]} 10. a4 {[%emt 0:00:11]} Re8 {[%emt 0:01:04]} 11. Nd2 {[%emt 0:00:29]} Nbd7 {[%emt 0:00:30]} 12. Nc4 {[%emt 0:01:25]} Ne5 {[%emt 0:00:25]} 13. Nxe5 {[%emt 0:00:25]} Rxe5 {[%emt 0:00:14]} 14. e4 {[%emt 0:00:07]} Rb8 {[%emt 0:00:36]} 15. Bf4 {[%emt 0:00:47]} Re8 {[%emt 0:00:05]} 16. Qd3 {[%emt 0:01:11]} Nd7 {[%emt 0:00:19]} 17. Rad1 {[%emt 0:00:39]} b5 {[%emt 0:00:44]} 18. Rfe1 {[%emt 0:00:58]} g5 {[%emt 0:00:17]} 19. Bc1 {[%emt 0:00:11]} Ne5 {[%emt 0:00:02]} 20. Qe2 {[%emt 0:00:55]} c4 {[%emt 0:01:32]} 21. axb5 {[%emt 0:00:50]} axb5 {[%emt 0:00:04]} 22. Be3 {[%emt 0:00:01]} b4 {[%emt 0:01:20]} 23. Nb1 {[%emt 0:00:04]} Bb6 {[%emt 0:00:05]} 24. h3 {[%emt 0:00:42]} Ba6 {[%emt 0:00:45]} 25. Kh2 {[%emt 0:00:47]} Nd3 {[%emt 0:00:54]} 26. Bxb6 {[%emt 0:00:52]} Rxb6 {[%emt 0:01:14]} 27. Rf1 {[%emt 0:00:03]} Qf6 {[%emt 0:00:10]} 28. b3 {[%emt 0:00:28]} Nb2 {[%emt 0:00:49]} 29. Qe3 {[%emt 0:01:24]} Rbb8 {[%emt 0:00:05]} 30. Rd4 {[%emt 0:00:42]} cxb3 {[%emt 0:00:51]} 31. Rc1 {[%emt 0:00:36]} Rbc8 {[%emt 0:00:09]} 32. Rxc8 {[%emt 0:00:55]} Rxc8 {[%emt 0:00:06]} 33. Rxb4 {[%emt 0:00:01]} Rc2 {[%emt 0:02:29]} 34. Rxb3 {[%emt 0:00:03]} Rxf2 {[%emt 0:00:03]} 35. Nd2 {[%emt 0:00:31]} Nd1 {[%emt 0:00:52]} 36. Qe1 {[%emt 0:00:03]} Qd4 {[%emt 0:00:38]} 37. Nf3 {[%emt 0:00:32]} Qa1 {[%emt 0:00:02]} 38. Rb8+ {[%emt 0:00:58]} Kg7 {[%emt 0:00:02]} 39. Ra8 {[%emt 0:00:02]} Qb2 {[%emt 0:00:05]} 40. Qg1 {[%emt 0:00:13]} Ne3 {[%emt 0:00:07]} 41. Ne1 {[%emt 0:00:02]} Nxg2 {[%emt 0:00:04]} 42. Nxg2 {[%emt 0:00:14]} Bf1 {[%emt 0:00:02]} 0-1

[Event "European Online Club-ch-D 2021"]
[Site "Online"]
[Date "2021.03.27"]
[Round "4.7"]
[White "Hoffmann, Hendrik"]
[Black "Vymazal, Bronislav"]
[Result "0-1"]
[ECO "B06"]
[WhiteElo "2242"]
[BlackElo "2350"]
[Annotator "NA"]
[PlyCount "60"]
[EventDate "2021.03.27"]
[EventType "team-tourn"]
[EventCountry "NET"]
[SourceTitle "playchess.com"]
[Source "ChessBase"]
[SourceQuality "1"]
[TimeControl "900+5"]

1. e4 {[%emt 0:00:00]} c5 {[%emt 0:00:05]} 2. c3 {[%emt 0:00:13]} d5 {[%emt 0:01:15]} 3. exd5 {[%emt 0:00:08]} Qxd5 {[%emt 0:00:00]} 4. d4 {[%emt 0:00:02]} g6 {[%emt 0:00:02]} 5. Nf3 {[%emt 0:00:04]} Bg7 {[%emt 0:00:08]} 6. Be3 {[%emt 0:00:14]} cxd4 {[%emt 0:00:03]} 7. cxd4 {[%emt 0:00:06]} Nf6 {[%emt 0:00:36]} 8. Nc3 {[%emt 0:00:09]} Qa5 {[%emt 0:00:02]} 9. h3 {[%emt 0:00:46]} O-O {[%emt 0:00:03]} 10. Bc4 {[%emt 0:00:02]} Ne4 {[%emt 0:01:44]} 11. Qb3 {[%emt 0:00:17]} Nd7 {[%emt 0:00:23]} 12. O-O {[%emt 0:00:14]} Nxc3 {[%emt 0:00:10]} 13. Qxc3 {[%emt 0:00:14]} Qh5 {[%emt 0:00:31]} 14. Be2 {[%emt 0:00:10]} Nb6 {[%emt 0:00:28]} 15. Rad1 {[%emt 0:01:29]} Be6 {[%emt 0:02:09]} 16. Rfe1 {[%emt 0:00:19]} Qd5 {[%emt 0:00:04]} 17. b3 {[%emt 0:00:27]} Rac8 {[%emt 0:00:05]} 18. Qd2 {[%emt 0:00:02]} Rfd8 {[%emt 0:00:13]} 19. Bh6 {[%emt 0:00:10]} Bf6 {[%emt 0:01:43]} 20. Bg5 {[%emt 0:01:23]} Bf5 {[%emt 0:00:08]} 21. Bxf6 {[%emt 0:00:12]} exf6 {[%emt 0:00:00]} 22. Qf4 {[%emt 0:00:22]} Kg7 {[%emt 0:00:34]} 23. g4 {[%emt 0:00:27]} Be6 {[%emt 0:00:11]} 24. h4 {[%emt 0:00:02]} Qd6 {[%emt 0:00:47]} 25. Qe4 {[%emt 0:00:53]} Nd5 {[%emt 0:00:07]} 26. Rc1 {[%emt 0:00:15]} Nc3 {[%emt 0:00:12]} 27. Rxc3 {[%emt 0:01:31]} Rxc3 {[%emt 0:00:00]} 28. g5 {[%emt 0:00:01]} Bd5 {[%emt 0:00:08]} 29. Qg4 {[%emt 0:00:28]} f5 {[%emt 0:00:08]} 30. Qh3 {[%emt 0:00:18]} Re8 {[%emt 0:00:12]} 0-1

[Event "European Online Club-ch-D 2021"]
[Site "Online"]
[Date "2021.03.27"]
[Round "4.8"]
[White "Kusa, Jakub"]
[Black "Skulte, Christopher"]
[Result "1-0"]
[ECO "B45"]
[WhiteElo "2336"]
[BlackElo "2055"]
[Annotator "NA"]
[PlyCount "60"]
[EventDate "2021.03.27"]
[EventType "team-tourn"]
[EventCountry "NET"]
[SourceTitle "playchess.com"]
[Source "ChessBase"]
[SourceQuality "1"]
[TimeControl "900+5"]

1. e4 {[%emt 0:00:00]} c5 {[%emt 0:00:04]} 2. Nf3 {[%emt 0:00:06]} e6 {[%emt 0:00:04]} 3. d4 {[%emt 0:00:04]} cxd4 {[%emt 0:00:03]} 4. Nxd4 {[%emt 0:00:02]} Nf6 {[%emt 0:00:03]} 5. Nc3 {[%emt 0:00:03]} Nc6 {[%emt 0:00:01]} 6. Ndb5 {[%emt 0:00:05]} Bb4 {[%emt 0:00:04]} 7. a3 {[%emt 0:00:03]} Bxc3+ {[%emt 0:00:02]} 8. Nxc3 {[%emt 0:00:03]} d5 {[%emt 0:00:04]} 9. exd5 {[%emt 0:00:05]} exd5 {[%emt 0:00:02]} 10. Bd3 {[%emt 0:00:05]} O-O {[%emt 0:00:07]} 11. O-O {[%emt 0:00:03]} d4 {[%emt 0:00:07]} 12. Ne2 {[%emt 0:00:08]} Bg4 {[%emt 0:00:08]} 13. Bg5 {[%emt 0:00:09]} Re8 {[%emt 0:00:20]} 14. f3 {[%emt 0:00:43]} Bh5 {[%emt 0:00:15]} 15. Bh4 {[%emt 0:00:18]} Bg6 {[%emt 0:01:40]} 16. Bxg6 {[%emt 0:00:20]} hxg6 {[%emt 0:00:11]} 17. Bf2 {[%emt 0:00:16]} Qb6 {[%emt 0:00:10]} 18. b4 {[%emt 0:02:24]} Rad8 {[%emt 0:00:18]} 19. c3 {[%emt 0:01:17]} Nd5 {[%emt 0:00:50]} 20. cxd4 {[%emt 0:00:33]} Qb5 {[%emt 0:00:31]} 21. Re1 {[%emt 0:00:54]} Ne3 {[%emt 0:00:17]} 22. Nc3 {[%emt 0:02:25]} Qg5 {[%emt 0:02:23]} 23. Rxe3 {[%emt 0:00:30]} Rxe3 {[%emt 0:00:13]} 24. Qc1 {[%emt 0:00:18]} Rde8 {[%emt 0:01:48]} 25. Ne4 {[%emt 0:01:30]} R8xe4 {[%emt 0:01:08]} 26. fxe4 {[%emt 0:00:08]} Nxd4 {[%emt 0:00:10]} 27. Qxe3 {[%emt 0:00:39]} Qxe3 {[%emt 0:00:05]} 28. Bxe3 {[%emt 0:00:02]} Nc2 {[%emt 0:00:02]} 29. Rc1 {[%emt 0:00:22]} Nxe3 {[%emt 0:00:02]} 30. h3 {[%emt 0:00:23]} b6 {[%emt 0:00:04]} 1-0

[Event "European Online Club-ch-D 2021"]
[Site "Online"]
[Date "2021.03.27"]
[Round "4.9"]
[White "Lopez Del Alamo, Antonio"]
[Black "Ibrahimli, Murad"]
[Result "0-1"]
[ECO "C24"]
[WhiteElo "2295"]
[BlackElo "2436"]
[Annotator "NA"]
[PlyCount "72"]
[EventDate "2021.03.27"]
[EventType "team-tourn"]
[EventCountry "NET"]
[SourceTitle "playchess.com"]
[Source "ChessBase"]
[SourceQuality "1"]
[TimeControl "900+5"]

1. e4 {[%emt 0:00:00]} e5 {[%emt 0:00:03]} 2. Bc4 {[%emt 0:00:05]} Nf6 {[%emt 0:00:03]} 3. d3 {[%emt 0:00:03]} c6 {[%emt 0:00:04]} 4. Nf3 {[%emt 0:00:02]} d5 {[%emt 0:00:02]} 5. Bb3 {[%emt 0:00:02]} Bb4+ {[%emt 0:00:01]} 6. Bd2 {[%emt 0:00:03]} Bd6 {[%emt 0:00:27]} 7. Nc3 {[%emt 0:00:30]} Be6 {[%emt 0:00:33]} 8. Ng5 {[%emt 0:01:09]} Nbd7 {[%emt 0:00:12]} 9. Nxe6 {[%emt 0:00:06]} fxe6 {[%emt 0:00:03]} 10. a3 {[%emt 0:00:13]} O-O {[%emt 0:00:04]} 11. Qe2 {[%emt 0:00:06]} a5 {[%emt 0:00:04]} 12. O-O {[%emt 0:00:15]} Qe8 {[%emt 0:00:15]} 13. Bg5 {[%emt 0:01:22]} Qg6 {[%emt 0:00:04]} 14. Bxf6 {[%emt 0:01:01]} Nxf6 {[%emt 0:00:05]} 15. Rad1 {[%emt 0:00:29]} Nh5 {[%emt 0:00:16]} 16. g3 {[%emt 0:00:12]} Kh8 {[%emt 0:00:57]} 17. Kh1 {[%emt 0:00:08]} Rf7 {[%emt 0:00:04]} 18. d4 {[%emt 0:01:10]} exd4 {[%emt 0:00:09]} 19. Rxd4 {[%emt 0:00:03]} Raf8 {[%emt 0:01:32]} 20. e5 {[%emt 0:02:36]} Bc5 {[%emt 0:02:11]} 21. Rh4 {[%emt 0:00:05]} Rf5 {[%emt 0:00:52]} 22. f4 {[%emt 0:02:22]} Qf7 {[%emt 0:05:29]} 23. Nd1 {[%emt 0:00:38]} g6 {[%emt 0:00:06]} 24. c3 {[%emt 0:00:07]} Ng7 {[%emt 0:00:01]} 25. Ne3 {[%emt 0:01:05]} Bxe3 {[%emt 0:00:31]} 26. Qxe3 {[%emt 0:00:03]} g5 {[%emt 0:00:01]} 27. Rh6 {[%emt 0:01:31]} gxf4 {[%emt 0:00:03]} 28. gxf4 {[%emt 0:00:09]} Rh5 {[%emt 0:00:02]} 29. Rf6 {[%emt 0:00:52]} Qe7 {[%emt 0:00:01]} 30. Rxf8+ {[%emt 0:00:35]} Qxf8 {[%emt 0:00:03]} 31. Bc2 {[%emt 0:00:02]} Nf5 {[%emt 0:00:29]} 32. Qf3 {[%emt 0:00:10]} Qh6 {[%emt 0:00:30]} 33. Rf2 {[%emt 0:00:03]} Rh3 {[%emt 0:00:05]} 34. Qg4 {[%emt 0:00:04]} Rg3 {[%emt 0:00:45]} 35. Qe2 {[%emt 0:00:21]} Re3 {[%emt 0:00:04]} 36. Qf1 {[%emt 0:00:08]} Ng3+ {[%emt 0:00:03]} 0-1

[Event "European Online Club-ch-D 2021"]
[Site "Online"]
[Date "2021.03.27"]
[Round "4.10"]
[White "Babazada, Khazar"]
[Black "Gongora Montes, Benjamin"]
[Result "1-0"]
[ECO "C49"]
[WhiteElo "2409"]
[BlackElo "2198"]
[Annotator "NA"]
[PlyCount "67"]
[EventDate "2021.03.27"]
[EventType "team-tourn"]
[EventCountry "NET"]
[SourceTitle "playchess.com"]
[Source "ChessBase"]
[SourceQuality "1"]
[TimeControl "900+5"]

1. e4 {[%emt 0:00:00]} e5 {[%emt 0:00:07]} 2. Nc3 {[%emt 0:00:03]} Nf6 {[%emt 0:00:03]} 3. Nf3 {[%emt 0:00:01]} Nc6 {[%emt 0:00:06]} 4. Bb5 {[%emt 0:00:05]} Bb4 {[%emt 0:01:10]} 5. O-O {[%emt 0:00:32]} d6 {[%emt 0:00:05]} 6. Nd5 {[%emt 0:02:37]} Nxd5 {[%emt 0:00:40]} 7. exd5 {[%emt 0:00:05]} a6 {[%emt 0:00:01]} 8. Ba4 {[%emt 0:00:03]} b5 {[%emt 0:00:03]} 9. Bb3 {[%emt 0:00:02]} Ne7 {[%emt 0:00:06]} 10. c3 {[%emt 0:02:23]} Ba5 {[%emt 0:00:06]} 11. d4 {[%emt 0:00:02]} e4 {[%emt 0:02:12]} 12. Ng5 {[%emt 0:00:19]} Bf5 {[%emt 0:00:05]} 13. Re1 {[%emt 0:00:16]} O-O {[%emt 0:00:07]} 14. Nxe4 {[%emt 0:00:16]} Re8 {[%emt 0:00:08]} 15. Bg5 {[%emt 0:01:11]} Qd7 {[%emt 0:00:06]} 16. Qf3 {[%emt 0:00:28]} h6 {[%emt 0:00:47]} 17. Bxe7 {[%emt 0:01:44]} Rxe7 {[%emt 0:00:05]} 18. Nf6+ {[%emt 0:00:13]} gxf6 {[%emt 0:00:12]} 19. Rxe7 {[%emt 0:00:04]} Qxe7 {[%emt 0:00:08]} 20. Qxf5 {[%emt 0:00:03]} Re8 {[%emt 0:00:04]} 21. g3 {[%emt 0:00:49]} Qe4 {[%emt 0:01:30]} 22. Qxf6 {[%emt 0:00:24]} b4 {[%emt 0:00:03]} 23. c4 {[%emt 0:01:08]} Bb6 {[%emt 0:00:05]} 24. Rd1 {[%emt 0:00:36]} Qg4 {[%emt 0:01:48]} 25. c5 {[%emt 0:01:27]} dxc5 {[%emt 0:00:29]} 26. dxc5 {[%emt 0:00:22]} Bxc5 {[%emt 0:00:07]} 27. d6 {[%emt 0:00:04]} Re6 {[%emt 0:00:44]} 28. Bxe6 {[%emt 0:01:17]} Qxd1+ {[%emt 0:00:05]} 29. Kg2 {[%emt 0:00:03]} fxe6 {[%emt 0:00:20]} 30. Qxe6+ {[%emt 0:00:22]} Kg7 {[%emt 0:00:29]} 31. dxc7 {[%emt 0:00:09]} Qd4 {[%emt 0:00:16]} 32. c8=Q {[%emt 0:00:20]} Qxf2+ {[%emt 0:00:06]} 33. Kh3 {[%emt 0:00:01]} Qf1+ {[%emt 0:00:16]} 34. Kh4 {[%emt 0:00:04]} 1-0

[Event "European Online Club-ch-D 2021"]
[Site "Online"]
[Date "2021.03.27"]
[Round "4.11"]
[White "Pascual Palomo, Lucia"]
[Black "Eynullayev, Atilla"]
[Result "0-1"]
[ECO "B92"]
[WhiteElo "2101"]
[BlackElo "2347"]
[Annotator "NA"]
[PlyCount "78"]
[EventDate "2021.03.27"]
[EventType "team-tourn"]
[EventCountry "NET"]
[SourceTitle "playchess.com"]
[Source "ChessBase"]
[SourceQuality "1"]
[TimeControl "900+5"]

1. e4 {[%emt 0:00:00]} c5 {[%emt 0:00:02]} 2. Nf3 {[%emt 0:00:03]} d6 {[%emt 0:00:02]} 3. d4 {[%emt 0:00:02]} cxd4 {[%emt 0:00:01]} 4. Nxd4 {[%emt 0:00:03]} Nf6 {[%emt 0:00:02]} 5. Nc3 {[%emt 0:00:02]} a6 {[%emt 0:00:01]} 6. Be2 {[%emt 0:00:01]} e5 {[%emt 0:00:02]} 7. Nb3 {[%emt 0:00:02]} Be7 {[%emt 0:00:01]} 8. O-O {[%emt 0:00:02]} O-O {[%emt 0:00:02]} 9. Be3 {[%emt 0:00:03]} Be6 {[%emt 0:00:02]} 10. a4 {[%emt 0:00:02]} Nc6 {[%emt 0:01:11]} 11. f3 {[%emt 0:00:14]} Nb4 {[%emt 0:00:11]} 12. a5 {[%emt 0:00:09]} Rc8 {[%emt 0:00:29]} 13. Bb6 {[%emt 0:00:41]} Qd7 {[%emt 0:00:05]} 14. Qd2 {[%emt 0:00:53]} d5 {[%emt 0:00:47]} 15. exd5 {[%emt 0:00:13]} Nfxd5 {[%emt 0:00:07]} 16. Nxd5 {[%emt 0:00:08]} Qxd5 {[%emt 0:00:49]} 17. Qxd5 {[%emt 0:00:49]} Bxd5 {[%emt 0:00:03]} 18. c4 {[%emt 0:00:31]} Bxc4 {[%emt 0:00:31]} 19. Bxc4 {[%emt 0:00:00]} Rxc4 {[%emt 0:00:01]} 20. Rae1 {[%emt 0:00:22]} f6 {[%emt 0:00:36]} 21. Rd1 {[%emt 0:00:05]} Nc6 {[%emt 0:01:57]} 22. Rd3 {[%emt 0:00:45]} Kf7 {[%emt 0:00:31]} 23. Rfd1 {[%emt 0:00:05]} Rb4 {[%emt 0:00:55]} 24. R1d2 {[%emt 0:00:57]} Rc8 {[%emt 0:00:28]} 25. Kf2 {[%emt 0:00:26]} e4 {[%emt 0:01:14]} 26. fxe4 {[%emt 0:00:11]} Ne5 {[%emt 0:00:01]} 27. Rg3 {[%emt 0:00:26]} Rxe4 {[%emt 0:01:32]} 28. Bd4 {[%emt 0:01:23]} Bb4 {[%emt 0:01:13]} 29. Bc3 {[%emt 0:02:00]} Bxc3 {[%emt 0:00:33]} 30. bxc3 {[%emt 0:00:04]} Ng4+ {[%emt 0:00:46]} 31. Kf3 {[%emt 0:00:16]} f5 {[%emt 0:00:03]} 32. Rxg4 {[%emt 0:00:48]} Rxc3+ {[%emt 0:00:17]} 33. Kf2 {[%emt 0:00:10]} fxg4 {[%emt 0:00:07]} 34. Nd4 {[%emt 0:00:13]} h5 {[%emt 0:00:06]} 35. g3 {[%emt 0:00:11]} Rc5 {[%emt 0:00:13]} 36. Ne2 {[%emt 0:00:11]} Rxa5 {[%emt 0:00:04]} 37. Nf4 {[%emt 0:00:02]} Rf5 {[%emt 0:00:11]} 38. Rd7+ {[%emt 0:00:11]} Re7 {[%emt 0:00:03]} 39. Rd4 {[%emt 0:00:09]} g5 {[%emt 0:00:03]} 0-1

[Event "European Online Club-ch-D 2021"]
[Site "Online"]
[Date "2021.03.27"]
[Round "4.12"]
[White "Azadaliyev, Jahandar"]
[Black "Blasco De La Cruz, Luis"]
[Result "1-0"]
[ECO "A52"]
[WhiteElo "1883"]
[BlackElo "1902"]
[Annotator "NA"]
[PlyCount "115"]
[EventDate "2021.03.27"]
[EventType "team-tourn"]
[EventCountry "NET"]
[SourceTitle "playchess.com"]
[Source "ChessBase"]
[SourceQuality "1"]
[TimeControl "900+5"]

1. d4 {[%emt 0:00:00]} Nf6 {[%emt 0:00:06]} 2. c4 {[%emt 0:00:02]} e5 {[%emt 0:00:58]} 3. dxe5 {[%emt 0:00:02]} Ng4 {[%emt 0:00:02]} 4. Bf4 {[%emt 0:00:02]} Bb4+ {[%emt 0:00:02]} 5. Nd2 {[%emt 0:00:02]} Nc6 {[%emt 0:00:02]} 6. Ngf3 {[%emt 0:00:02]} Qe7 {[%emt 0:00:02]} 7. a3 {[%emt 0:00:01]} Ngxe5 {[%emt 0:00:16]} 8. Nxe5 {[%emt 0:00:04]} Nxe5 {[%emt 0:00:07]} 9. e3 {[%emt 0:00:02]} Bxd2+ {[%emt 0:00:07]} 10. Qxd2 {[%emt 0:00:01]} O-O {[%emt 0:00:04]} 11. Qc3 {[%emt 0:00:03]} d6 {[%emt 0:00:01]} 12. c5 {[%emt 0:00:39]} Ng6 {[%emt 0:00:28]} 13. cxd6 {[%emt 0:00:14]} cxd6 {[%emt 0:00:02]} 14. Bg3 {[%emt 0:00:23]} d5 {[%emt 0:00:17]} 15. Qd4 {[%emt 0:00:06]} Be6 {[%emt 0:00:15]} 16. Bd3 {[%emt 0:00:04]} Rfc8 {[%emt 0:01:26]} 17. O-O {[%emt 0:00:03]} a6 {[%emt 0:00:32]} 18. Rac1 {[%emt 0:00:14]} Qd7 {[%emt 0:00:50]} 19. Rcd1 {[%emt 0:00:10]} Nf8 {[%emt 0:01:11]} 20. Rd2 {[%emt 0:00:39]} f5 {[%emt 0:00:09]} 21. Rfd1 {[%emt 0:00:09]} Qf7 {[%emt 0:00:37]} 22. Bb1 {[%emt 0:00:16]} Nd7 {[%emt 0:00:06]} 23. Ba2 {[%emt 0:00:04]} Nf6 {[%emt 0:00:38]} 24. f3 {[%emt 0:00:06]} Re8 {[%emt 0:01:23]} 25. Bh4 {[%emt 0:00:38]} Rad8 {[%emt 0:00:33]} 26. Bxf6 {[%emt 0:00:04]} Qxf6 {[%emt 0:00:16]} 27. Qxf6 {[%emt 0:00:04]} gxf6 {[%emt 0:00:00]} 28. Kf2 {[%emt 0:00:02]} Kf7 {[%emt 0:01:04]} 29. Rd4 {[%emt 0:00:14]} Rc8 {[%emt 0:00:18]} 30. Bxd5 {[%emt 0:00:11]} Bxd5 {[%emt 0:00:20]} 31. Rxd5 {[%emt 0:00:01]} Rc2+ {[%emt 0:00:02]} 32. R1d2 {[%emt 0:00:02]} Rec8 {[%emt 0:00:18]} 33. Ke2 {[%emt 0:00:11]} Ke6 {[%emt 0:00:04]} 34. Rd6+ {[%emt 0:00:04]} Ke7 {[%emt 0:00:04]} 35. Rd7+ {[%emt 0:00:02]} Ke8 {[%emt 0:00:07]} 36. Rxh7 {[%emt 0:00:07]} Rxd2+ {[%emt 0:00:29]} 37. Kxd2 {[%emt 0:00:04]} Rc5 {[%emt 0:00:02]} 38. Rxb7 {[%emt 0:00:05]} a5 {[%emt 0:00:02]} 39. b4 {[%emt 0:00:03]} axb4 {[%emt 0:00:02]} 40. axb4 {[%emt 0:00:01]} Rd5+ {[%emt 0:00:02]} 41. Kc2 {[%emt 0:00:01]} Kf8 {[%emt 0:00:02]} 42. Rc7 {[%emt 0:00:02]} Rb5 {[%emt 0:00:06]} 43. Kc3 {[%emt 0:00:03]} Re5 {[%emt 0:00:01]} 44. Kd4 {[%emt 0:00:02]} Rb5 {[%emt 0:00:01]} 45. Rc4 {[%emt 0:00:09]} Kf7 {[%emt 0:00:02]} 46. e4 {[%emt 0:00:01]} fxe4 {[%emt 0:00:02]} 47. fxe4 {[%emt 0:00:02]} Rh5 {[%emt 0:00:01]} 48. h3 {[%emt 0:00:02]} Rg5 {[%emt 0:00:01]} 49. g4 {[%emt 0:00:02]} Rb5 {[%emt 0:00:03]} 50. Kc3 {[%emt 0:00:02]} Re5 {[%emt 0:00:07]} 51. Kb3 {[%emt 0:00:02]} Kg6 {[%emt 0:00:02]} 52. h4 {[%emt 0:00:02]} Kh6 {[%emt 0:00:02]} 53. Ka4 {[%emt 0:00:02]} Kg6 {[%emt 0:00:04]} 54. b5 {[%emt 0:00:02]} Re7 {[%emt 0:00:02]} 55. b6 {[%emt 0:00:01]} Kh6 {[%emt 0:00:01]} 56. Rb4 {[%emt 0:00:03]} Rb7 {[%emt 0:00:00]} 57. Ka5 {[%emt 0:00:01]} Kg6 {[%emt 0:00:03]} 58. Ka6 {[%emt 0:00:02]} 1-0

[Event "European Online Club-ch-D 2021"]
[Site "Online"]
[Date "2021.03.27"]
[Round "4.16"]
[White "Fischer, Daniel"]
[Black "Cheparinov, Ivan"]
[Result "0-1"]
[ECO "B90"]
[WhiteElo "2276"]
[BlackElo "2667"]
[Annotator "RC"]
[PlyCount "70"]
[EventDate "2021.03.27"]
[EventType "team-tourn"]
[EventCountry "NET"]
[SourceTitle "playchess.com"]
[Source "ChessBase"]
[SourceQuality "1"]
[TimeControl "900+5"]

1. e4 {[%emt 0:00:00]} c5 {[%emt 0:00:07]} 2. Nf3 {[%emt 0:00:03]} d6 {[%emt 0:00:03]} 3. d4 {[%emt 0:00:02]} cxd4 {[%emt 0:00:01]} 4. Nxd4 {[%emt 0:00:00]} Nf6 {[%emt 0:00:01]} 5. Nc3 {[%emt 0:00:01]} a6 {[%emt 0:00:04]} 6. Be3 {[%emt 0:00:01]} e5 {[%emt 0:00:02]} 7. Nb3 {[%emt 0:00:02]} Be7 {[%emt 0:00:04]} 8. h3 {[%emt 0:00:01]} Be6 {[%emt 0:00:17]} 9. f4 {[%emt 0:00:01]} Nc6 {[%emt 0:00:19]} 10. f5 {[%emt 0:00:14]} Bxb3 {[%emt 0:00:02]} 11. axb3 {[%emt 0:00:05]} Nb4 {[%emt 0:00:02]} 12. g4 {[%emt 0:00:46]} d5 {[%emt 0:00:28]} 13. exd5 {[%emt 0:00:09]} Nfxd5 {[%emt 0:00:26]} 14. Nxd5 {[%emt 0:00:17]} Nxd5 {[%emt 0:00:40]} 15. Bf2 {[%emt 0:00:29]} Bb4+ {[%emt 0:01:15]} 16. c3 {[%emt 0:01:18]} Nxc3 {[%emt 0:00:03]} 17. bxc3 {[%emt 0:00:01]} Bxc3+ {[%emt 0:00:01]} 18. Ke2 {[%emt 0:00:01]} Bxa1 {[%emt 0:00:01]} 19. Qxa1 {[%emt 0:00:02]} Qd5 {[%emt 0:00:09]} 20. Rg1 {[%emt 0:01:23]} Rc8 {[%emt 0:00:31]} 21. Qb1 {[%emt 0:01:21]} O-O {[%emt 0:00:04]} 22. Rg3 {[%emt 0:00:52]} Rfd8 {[%emt 0:00:56]} 23. Rd3 {[%emt 0:00:56]} Qe4+ {[%emt 0:01:47]} 24. Be3 {[%emt 0:00:05]} Rxd3 {[%emt 0:00:33]} 25. Qxd3 {[%emt 0:00:02]} Rc2+ {[%emt 0:00:02]} 26. Kd1 {[%emt 0:00:18]} Qxd3+ {[%emt 0:00:02]} 27. Bxd3 {[%emt 0:00:00]} Rc3 {[%emt 0:00:11]} 28. Kd2 {[%emt 0:00:12]} Rxb3 {[%emt 0:00:09]} 29. Bc4 {[%emt 0:00:31]} Rb2+ {[%emt 0:00:22]} 30. Kc3 {[%emt 0:00:36]} Rh2 {[%emt 0:00:02]} 31. Bf1 {[%emt 0:00:48]} b5 {[%emt 0:00:16]} 32. Kb4 {[%emt 0:00:14]} Rh1 {[%emt 0:00:39]} 33. Bg2 {[%emt 0:00:10]} Rb1+ {[%emt 0:00:45]} 34. Ka5 {[%emt 0:00:57]} b4 {[%emt 0:00:22]} 35. Bc5 {[%emt 0:01:55]} b3 {[%emt 0:00:08]} 0-1

[Event "European Online Club-ch-D 2021"]
[Site "Online"]
[Date "2021.03.27"]
[Round "4.18"]
[White "Dolana, Andrei-Theodor"]
[Black "Lagarde, Maxime"]
[Result "0-1"]
[ECO "A34"]
[WhiteElo "2359"]
[BlackElo "2640"]
[Annotator "ChessBase"]
[PlyCount "68"]
[EventDate "2021.03.27"]
[EventType "team-tourn"]
[EventCountry "NET"]
[SourceTitle "playchess.com"]
[Source "ChessBase"]
[SourceQuality "1"]
[TimeControl "900+5"]

1. Nf3 {[%emt 0:00:00]} c5 {[%emt 0:00:10]} 2. c4 {[%emt 0:00:12]} Nc6 {[%emt 0:00:03]} 3. e3 {[%emt 0:01:00]} e5 {[%emt 0:00:30]} 4. Nc3 {[%emt 0:00:03]} Nf6 {[%emt 0:00:08]} 5. d4 {[%emt 0:00:03]} e4 {[%emt 0:00:03]} 6. d5 {[%emt 0:01:52]} exf3 {[%emt 0:00:03]} 7. dxc6 {[%emt 0:00:02]} bxc6 {[%emt 0:00:00]} 8. Qxf3 {[%emt 0:00:05]} Bd6 {[%emt 0:00:18]} 9. Bd3 {[%emt 0:00:47]} O-O {[%emt 0:00:53]} 10. O-O {[%emt 0:00:04]} Be5 {[%emt 0:01:01]} 11. h3 {[%emt 0:01:45]} Re8 {[%emt 0:01:07]} 12. Rd1 {[%emt 0:00:12]} Rb8 {[%emt 0:01:02]} 13. Rb1 {[%emt 0:01:41]} h6 {[%emt 0:02:27]} 14. Na4 {[%emt 0:01:25]} Qe7 {[%emt 0:00:43]} 15. b3 {[%emt 0:00:07]} d6 {[%emt 0:00:56]} 16. Bb2 {[%emt 0:00:06]} g5 {[%emt 0:00:12]} 17. Bf5 {[%emt 0:01:41]} Kg7 {[%emt 0:01:06]} 18. Bc3 {[%emt 0:01:54]} Bxc3 {[%emt 0:00:23]} 19. Nxc3 {[%emt 0:00:02]} Qe5 {[%emt 0:00:00]} 20. Bxc8 {[%emt 0:00:07]} Rbxc8 {[%emt 0:00:22]} 21. Rd3 {[%emt 0:00:03]} Re6 {[%emt 0:00:13]} 22. Rbd1 {[%emt 0:00:03]} h5 {[%emt 0:00:27]} 23. Ne2 {[%emt 0:01:10]} Ne4 {[%emt 0:00:10]} 24. Qxh5 {[%emt 0:00:12]} Rh8 {[%emt 0:00:04]} 25. Qg4 {[%emt 0:01:02]} Rh4 {[%emt 0:00:22]} 26. f4 {[%emt 0:00:06]} Qb2 {[%emt 0:00:07]} 27. Qf3 {[%emt 0:00:07]} g4 {[%emt 0:00:04]} 28. hxg4 {[%emt 0:00:16]} Reh6 {[%emt 0:00:02]} 29. Kf1 {[%emt 0:00:25]} Rh1+ {[%emt 0:00:19]} 30. Ng1 {[%emt 0:00:02]} Re6 {[%emt 0:01:31]} 31. g5 {[%emt 0:00:41]} Qxa2 {[%emt 0:00:33]} 32. f5 {[%emt 0:00:18]} Re5 {[%emt 0:00:01]} 33. f6+ {[%emt 0:00:03]} Kg6 {[%emt 0:00:02]} 34. Qg4 {[%emt 0:00:09]} Qf2# {[%emt 0:00:03]} 0-1